fUSD/lending_fUSD_20241123
["ID","MTS","AMOUNT","RATE_DAILY","PERIOD"]
[343109740,1732363834129,-150.0,0.000609,60]
[343109741,1732363834140,-370.76,0.000609,60]
[343109743,1732363834150,-150.0,0.000609,60]
[343109744,1732363834160,-433.75,0.000609,60]
[343109745,1732363834171,-433.75,0.000609,60]
[343109746,1732363834181,-433.75,0.000609,60]
[343109747,1732363834191,-433.75,0.000609,60]
[343109749,1732363834201,-433.75,0.000609,60]
[343109750,1732363834211,-1500.0,0.000609,22]
[343109751,1732363834221,-500.0,0.00060972,120]
[343109752,1732363834230,-200.0,0.00061154,2]
[343109754,1732363834240,-4413.93654819,0.00061227,28]
[343109755,1732363834250,-638.14242477,0.00061296,120]
[343109756,1732363834260,-193.94558,0.0006141,103]
[343109757,1732363834270,-480.96,0.00061446,60]
[343109758,1732363834281,-500.0,0.00061676,120]
[343109760,1732363834293,-150.0,0.00061783,30]
[343109761,1732363834303,-150.0,0.00061787,30]
[343109762,1732363834313,-150.0,0.00061802,30]
[343109763,1732363834323,-150.0,0.0006181,30]
[343109764,1732363834333,-150.0,0.00061814,30]
[343109766,1732363834342,-150.0,0.00061816,30]
[343109767,1732363834354,-150.0,0.00061817,30]
[343109768,1732363834365,-150.0,0.00061818,30]
[343109769,1732363834375,-150.0,0.00061821,30]
[343109771,1732363834384,-150.0,0.00061822,30]
[343109772,1732363834396,-150.0,0.00061826,30]
[343109773,1732363834406,-150.0,0.00061826,30]
[343109774,1732363834416,-150.0,0.00061831,30]
[343109775,1732363834426,-150.0,0.00061831,30]
[343109777,1732363834436,-150.0,0.00061833,30]
[343109778,1732363834446,-150.0,0.00061834,30]
[343109779,1732363834456,-150.0,0.00061835,30]
[343109780,1732363834465,-1823.0,0.00061837,25]
[343109781,1732363834475,-150.0,0.00061837,30]
[343109783,1732363834485,-150.0,0.00061838,30]
[343109784,1732363834495,-150.0,0.00061841,30]
[343109785,1732363834505,-150.0,0.00061843,30]
[343109786,1732363834514,-1500.0,0.00061855,60]
[343109787,1732363834524,-150.0,0.00061857,30]
[343109789,1732363834533,-150.0,0.00061861,30]
[343109790,1732363834545,-150.0,0.00061864,30]
[343109791,1732363834554,-150.0,0.00061869,30]
[343109792,1732363834564,-150.0,0.00061872,30]
[343109793,1732363834573,-150.0,0.00061874,30]
[343109794,1732363834582,-150.0,0.00061876,30]
[343109796,1732363834591,-150.0,0.00061878,30]
[343109797,1732363834600,-150.0,0.00061881,30]
[343109798,1732363834608,-150.0,0.00061882,30]
[343109799,1732363834617,-150.0,0.00061884,30]
[343109800,1732363834626,-150.0,0.00061886,30]
[343109802,1732363834637,-150.0,0.00061893,30]
[343109803,1732363834647,-150.0,0.00061897,30]
[343109804,1732363834657,-150.0,0.00061899,30]
[343109805,1732363834666,-150.0,0.00061899,30]
[343109806,1732363834676,-1500.0,0.00061901,60]
[343109808,1732363834685,-150.0,0.00061904,30]
[343109809,1732363834695,-150.0,0.00061905,30]
[343109810,1732363834706,-150.0,0.00061905,30]
[343109811,1732363834715,-150.0,0.00061908,30]
[343109812,1732363834725,-150.0,0.00061909,30]
[343109814,1732363834735,-150.0,0.00061912,30]
[343109815,1732363834745,-150.0,0.00061913,30]
[343109816,1732363834754,-150.0,0.00061917,30]
[343109817,1732363834763,-150.0,0.00061918,30]
[343109818,1732363834773,-150.0,0.00061919,30]
[343109820,1732363834782,-150.0,0.0006192,30]
[343109821,1732363834792,-150.0,0.00061921,30]
[343109822,1732363834801,-1649.72887507,0.00061921,60]
[343109823,1732363834812,-150.0,0.00061927,30]
[343109825,1732363834825,-150.0,0.00061932,30]
[343109826,1732363834835,-151.0,0.00061932,7]
[343109827,1732363834845,-151.0,0.00061932,120]
[343109828,1732363834855,-150.0,0.00061934,30]
[343109829,1732363834865,-150.0,0.00061935,30]
[343109831,1732363834874,-150.0,0.00061936,30]
[343109832,1732363834884,-150.0,0.00061941,30]
[343109833,1732363834893,-150.0,0.00061942,30]
[343109834,1732363834903,-150.0,0.00061944,30]
[343109836,1732363834913,-150.0,0.00061948,30]
[343109837,1732363834922,-150.0,0.00061949,30]
[343109838,1732363834931,-150.0,0.0006195,30]
[343109839,1732363834940,-150.0,0.00061952,30]
[343109840,1732363834950,-150.0,0.00061958,30]
[343109842,1732363834959,-150.0,0.00061962,30]
[343109843,1732363834969,-150.0,0.00061964,30]
[343109844,1732363834978,-150.0,0.00061966,30]
[343109845,1732363834987,-150.0,0.00061972,30]
[343109847,1732363834998,-150.0,0.00061973,30]
[343109848,1732363835008,-150.0,0.00061975,30]
[343109849,1732363835018,-150.0,0.00061988,30]
[343109850,1732363835029,-150.0,0.0006199,30]
[343109851,1732363835038,-150.0,0.00061994,30]
[343109853,1732363835050,-150.0,0.00061994,30]
[343109854,1732363835060,-150.0,0.00061995,30]
[343109855,1732363835070,-150.0,0.00061997,30]
[343109856,1732363835080,-150.0,0.00061999,30]
[343109857,1732363835090,-20028.08567378,0.00062,120]
[343109859,1732363835101,-151.0,0.00062,120]
[343109860,1732363835111,-151.0,0.00062,120]
[343109861,1732363835120,-151.0,0.00062,120]
[343109862,1732363835129,-151.0,0.00062,120]
[343109864,1732363835138,-151.0,0.00062,120]
[343109865,1732363835147,-151.0,0.00062,120]
[343109866,1732363835157,-150.0,0.00062,30]
[343109867,1732363835167,-178.03489,0.00062,120]
[343109868,1732363835176,-178.03489,0.00062,120]
[343109870,1732363835187,-151.0,0.00062,120]
[343109871,1732363835196,-151.0,0.00062,120]
[343109872,1732363835206,-251.716587,0.00062,120]
[343109873,1732363835215,-251.716587,0.00062,120]
[343109875,1732363835225,-207.873406,0.00062,120]
[343109876,1732363835234,-150.0,0.00062004,30]
[343109877,1732363835243,-150.0,0.00062007,30]
[343109878,1732363835253,-150.0,0.00062007,30]
[343109879,1732363835262,-150.0,0.00062007,30]
[343109881,1732363835272,-500.0,0.00062007,120]
[343109882,1732363835282,-150.0,0.00062009,30]
[343109883,1732363835293,-150.0,0.00062011,30]
[343109884,1732363835303,-150.0,0.00062012,30]
[343109885,1732363835313,-150.0,0.00062013,30]
[343109887,1732363835322,-150.45254273,0.00062015,30]
[343109888,1732363835335,-150.0,0.00062021,30]
[343109889,1732363835345,-150.0,0.00062022,30]
[343109890,1732363835355,-150.0,0.00062027,30]
[343109891,1732363835365,-150.0,0.00062031,30]
[343109892,1732363835375,-269.84252655,0.00062033,30]
[343109893,1732363835385,-150.0,0.00062035,30]
[343109894,1732363835394,-150.0,0.00062035,30]
[343109895,1732363835404,-150.0,0.00062037,30]
[343109896,1732363835414,-150.0,0.00062038,30]
[343109897,1732363835423,-150.0,0.00062039,30]
[343109898,1732363835433,-150.0,0.00062039,30]
[343109899,1732363835443,-150.0,0.0006204,30]
[343109900,1732363835452,-150.0,0.0006204,30]
[343109901,1732363835462,-150.0,0.00062048,30]
[343109902,1732363835471,-150.0,0.00062048,30]
[343109904,1732363835480,-150.0,0.00062055,30]
[343109905,1732363835489,-150.0,0.00062056,30]
[343109906,1732363835499,-1024.13726468,0.00062131,120]
[343109907,1732363835508,-151.0,0.00062137,120]
[343109908,1732363835517,-185.40768306,0.00062225,44]
[343109910,1732363835526,-1219.654195,0.00062288,3]
[343109911,1732363835536,-638.89,0.00062331,2]
[343109912,1732363835545,-1977.57333787,0.00062367,15]
[343109913,1732363835554,-433.33,0.00062392,60]
[343109914,1732363835563,-157.59,0.00062405,120]
[343109916,1732363835573,-594.0,0.000625,106]
[343109917,1732363835582,-1069.9,0.00062519,2]
[343109918,1732363835592,-158.67,0.00062783,120]
[343109919,1732363835601,-151.0,0.00062787,120]
[343109921,1732363835610,-469.644,0.000628,120]
[343109922,1732363835620,-500.0,0.00062952,120]
[343109923,1732363835629,-500.0,0.0006297,120]
[343109924,1732363835639,-20000.0,0.00063,4]
[343109925,1732363835649,-151.0,0.00063,120]
[343109927,1732363835659,-151.0,0.00063,120]
[343109928,1732363835669,-251.361205,0.00063,120]
[343109929,1732363835678,-151.0,0.00063,120]
[343109930,1732363835689,-151.0,0.00063,120]
[343109931,1732363835700,-151.0,0.00063,120]
[343109933,1732363835711,-151.0,0.00063,120]
[343109934,1732363835722,-151.0,0.00063,120]
[343109935,1732363835734,-151.0,0.00063,120]
[343109936,1732363835744,-211.245307,0.00063,120]
[343109937,1732363835755,-500.0,0.00063122,120]
[343109939,1732363835766,-365.72,0.00063126,2]
[343109940,1732363835777,-365.72,0.00063143,2]
[343109941,1732363835788,-365.72,0.00063159,2]
[343109942,1732363835803,-365.72,0.00063176,2]
[343109943,1732363835814,-365.72,0.00063193,2]
[343109945,1732363835825,-365.72,0.00063209,2]
[343109946,1732363835836,-365.72,0.00063226,2]
[343109947,1732363835847,-365.72,0.00063242,2]
[343109951,1732363835990,-365.72,0.00063259,2]
[343109952,1732363836005,-500.0,0.0006326,120]
[343109953,1732363836015,-365.72,0.00063276,2]
[343109955,1732363836025,-365.72,0.00063292,2]
[343109956,1732363836034,-365.72,0.00063309,2]
[343109957,1732363836045,-603.315,0.00063317,120]
[343109958,1732363836055,-1257.0,0.00063317,120]
[343109959,1732363836065,-151.0,0.00063317,7]
[343109961,1732363836075,-365.72,0.00063325,2]
[343109962,1732363836084,-1996.0,0.0006333,120]
[343109963,1732363836094,-1928.0,0.0006333,120]
[343109964,1732363836104,-561.0,0.0006333,120]
[343109965,1732363836114,-815.0,0.0006333,2]
[343109967,1732363836124,-1261.0,0.0006333,120]
[343109968,1732363836134,-3750.0,0.0006333,120]
[343109969,1732363836144,-174.997585,0.0006333,120]
[343109970,1732363836154,-290.290938,0.0006333,120]
[343109971,1732363836163,-151.0,0.0006333,120]
[343109972,1732363836173,-365.72,0.00063342,2]
[343109974,1732363836182,-150.0,0.00063344,60]
[343109975,1732363836192,-725.58,0.00063344,60]
[343109976,1732363836202,-150.0,0.00063344,60]
[343109977,1732363836211,-150.0,0.00063344,60]
[343109978,1732363836221,-150.0,0.00063344,60]
[343109980,1732363836230,-810.03,0.00063344,60]
[343109981,1732363836239,-150.0,0.00063344,60]
[343109982,1732363836249,-150.0,0.00063344,60]
[343109983,1732363836258,-150.0,0.00063344,60]
[343109984,1732363836268,-433.75,0.00063344,60]
[343109986,1732363836277,-433.75,0.00063344,60]
[343109987,1732363836286,-150.0,0.00063344,60]
[343109988,1732363836298,-429.08,0.00063344,60]
[343109989,1732363836307,-150.0,0.00063344,60]
[343109990,1732363836317,-150.0,0.00063344,60]
[343109992,1732363836327,-365.72,0.00063359,2]
[343109993,1732363836344,-365.72,0.00063375,2]
[343109994,1732363836353,-365.72,0.00063392,2]
[343109995,1732363836362,-365.72,0.00063408,2]
[343109997,1732363836373,-365.72,0.00063425,2]
[343109998,1732363836382,-365.72,0.00063442,2]
[343109999,1732363836391,-651.269,0.00063456,120]
[343110000,1732363836400,-151.0,0.00063534,120]
[343110002,1732363836410,-500.0,0.00063592,120]
[343110003,1732363836419,-155.63,0.00063658,120]
[343110004,1732363836428,-500.0,0.00063696,120]
[343110005,1732363836436,-151.0,0.00063918,120]
[343110006,1732363836446,-153.82,0.00063957,2]
[343110008,1732363836455,-722.988,0.00064,120]
[343110009,1732363836465,-178.03489,0.00064,120]
[343110010,1732363836473,-178.03489,0.00064,120]
[343110011,1732363836483,-200.0,0.00064057,2]
[343110013,1732363836492,-150.0,0.00064057,120]
[343110014,1732363836501,-203.576,0.00064057,120]
[343110015,1732363836511,-155.311,0.00064057,120]
[343110016,1732363836520,-206.446,0.00064057,120]
[343110017,1732363836530,-918.0,0.00064132,120]
[343110019,1732363836538,-3517.0,0.00064132,120]
[343110020,1732363836548,-1258.297,0.00064132,120]
[343110021,1732363836557,-166.299,0.00064132,2]
[343110022,1732363836567,-177.958,0.00064132,120]
[343110023,1732363836577,-13666.0,0.00064132,120]
[343110025,1732363836586,-5944.0,0.00064132,120]
[343110026,1732363836596,-1094.0,0.00064132,120]
[343110027,1732363836606,-151.0,0.00064132,120]
[343110028,1732363836616,-251.716587,0.00064132,120]
[343110030,1732363836626,-251.716587,0.00064132,120]
[343110031,1732363836636,-150.5,0.00064315,120]
[343110032,1732363836646,-151.0,0.00064363,120]
[343110033,1732363836656,-151.0,0.00064363,120]
[343110034,1732363836666,-151.0,0.00064363,120]
[343110036,1732363836676,-151.0,0.00064363,120]
[343110037,1732363836687,-4413.93654819,0.00064541,28]
[343110038,1732363836697,-1000.0,0.0006468,120]
[343110039,1732363836706,-300.0,0.000647,2]
[343110040,1732363836716,-1069.9,0.00064783,2]
[343110042,1732363836726,-224.92908783,0.000649,45]
[343110043,1732363836737,-3000.0,0.000649,23]
[343110044,1732363836746,-500.0,0.00064912,120]
[343110045,1732363836755,-151.0,0.00064932,120]
[343110046,1732363836764,-1977.57333787,0.00064956,15]
[343110048,1732363836774,-18320.0,0.00065,120]
[343110049,1732363836783,-1002.0,0.00065,120]
[343110050,1732363836792,-151.0,0.00065,120]
[343110051,1732363836801,-143657.23070915,0.00065,120]
[343110053,1732363836825,-1839.55448874,0.00065,120]
[343110080,1732363837866,-1000.0,0.0006058,120]
[343110081,1732363837876,-150.0,0.00061881,30]
[343110082,1732363837886,-150.0,0.0006191,30]
[343110083,1732363837896,-150.0,0.00061951,30]
[343110084,1732363837905,-150.0,0.00061971,30]
[343110086,1732363837915,-150.0,0.00061987,30]
[343110087,1732363837925,-150.0,0.00061994,30]
[343110088,1732363837934,-150.0,0.00062025,30]
[343110089,1732363837943,-150.0,0.00062044,30]
[343110091,1732363837952,-150.0,0.00062061,30]
[343110092,1732363837962,-35.47819203,0.00062097,30]
[343110093,1732363837974,-114.52180797,0.00062097,30]
[343110094,1732363837983,-150.0,0.00062104,30]
[343110095,1732363837992,-150.0,0.00062115,30]
[343110097,1732363838006,-150.0,0.0006213,30]
[343110098,1732363838015,-1027.9027707,0.00065,120]
[343110099,1732363838028,-323.79921957,0.00065,120]
[343110100,1732363838041,-295.84924012,0.00065,120]
[343110102,1732363838054,-7102.63667154,0.00065,120]
[343110103,1732363838069,-18897.84384098,0.00065,120]
[343110104,1732363838086,-5772.01137544,0.00065,120]
[343110106,1732363838104,-3114.20207578,0.00065,120]
[343110107,1732363838118,-5123.62652859,0.00065,120]
[343110108,1732363838132,-1586.670972,0.00065,120]
[343110148,1732363840060,-1736.06390367,0.00065,120]
[343110149,1732363840079,-451.10031604,0.00065,120]
[343110150,1732363840093,-897.74499988,0.00065,120]
[343110151,1732363840107,-805.11300002,0.00065,120]
[343110222,1732363842931,-8352.2586909,0.00065,120]
[343110224,1732363842945,-151.0,0.00065,120]
[343110225,1732363842959,-151.0,0.00065,120]
[343110226,1732363842972,-154.099491,0.00065,120]
[343110228,1732363842984,-186.919852,0.00065,120]
[343110229,1732363842994,-178.03489,0.00065,120]
[343110230,1732363843013,-178.03489,0.00065,120]
[343110231,1732363843024,-151.0,0.00065,120]
[343110233,1732363843034,-251.716587,0.00065,120]
[343110234,1732363843044,-251.716587,0.00065,120]
[343110235,1732363843054,-151.0,0.00065,7]
[343110236,1732363843063,-188.67065106,0.00065,120]
[343110237,1732363843077,-157.17,0.00065069,120]
[343110239,1732363843087,-359.17937409,0.00065157,2]
[343110240,1732363843098,-299.999999,0.000653,2]
[343110241,1732363843107,-210.63,0.00065509,2]
[343110242,1732363843117,-562.18134099,0.00065578,120]
[343110244,1732363843129,-1193.98914807,0.00065578,120]
[343110245,1732363843145,-3243.82951094,0.00065578,120]
[343110246,1732363843155,-151.0,0.000656,120]
[343110247,1732363843164,-151.0,0.000656,120]
[343110249,1732363843173,-72.23101747,0.000656,120]
[343110307,1732363845817,-1590.146463,0.00065,2]
[343110311,1732363845923,-252.44552996,0.00065,2]
[343110559,1732363858026,100000.0,0.00052775,2]
[343110617,1732363860776,290.2815,0.00046248,2]
[343110630,1732363861398,100000.0,0.00052775,3]
[343110708,1732363865255,100000.0,0.00052775,4]
[343110777,1732363868730,100000.0,0.00052775,5]
[343111246,1732363943755,151.0,0.00052773,10]
[343111247,1732364020495,500.0,0.0005,120]
[343111250,1732364127926,159.99,0.00041096,2]
[343111251,1732364128122,138.2008105,0.00047945,2]
[343111252,1732364353571,223.02015582,0.00044,30]
[343111255,1732364708190,21486.72663403,0.00013,2]
[343111256,1732364708221,433515.2092408,0.00013,2]
[343111257,1732364708252,105049.43555649,0.00013,2]
[343111258,1732364708571,81358.89486398,0.0001,2]
[343111260,1732364709386,1031.44151864,0.00052771,2]
[343111261,1732364710954,19998.999989,0.00052771,120]
[343111262,1732364720253,5029.81213874,9e-05,2]
[343111263,1732364720904,5279.16752742,0.00052771,120]
[343111264,1732364729392,500.0,0.00052771,2]
[343111265,1732364729445,6945.08827974,0.00052771,7]
[343111266,1732364732278,1036.6664162,1e-06,2]
[343111267,1732364736581,9638.00520229,0.00052771,10]
[343111268,1732364736956,751.31660371,0.00052771,2]
[343111269,1732364740339,5803.35117155,0.00052771,120]
[343111270,1732364741693,456.64,0.00052771,10]
[343111271,1732364744616,3704.20611467,0.00052771,120]
[343111272,1732364745166,1039.94973737,0.00052771,90]
[343111273,1732364746111,13552.55548487,0.00052771,120]
[343111274,1732364750481,4032.32275123,0.00052771,2]
[343111275,1732364752137,9999.99999901,9.99e-05,2]
[343111276,1732364753541,4104.85556853,0.00052771,120]
[343111277,1732364754637,27932.45260678,0.00052771,2]
[343111278,1732364755210,683.48094184,6.94e-05,2]
[343111280,1732364763769,500.0,0.000118,2]
[343111281,1732364763818,500.0,0.00012348,2]
[343111282,1732364767100,2305.93390959,0.0001,2]
[343111283,1732364780984,699.78290428,0.00052771,120]
[343111284,1732364820621,27406.68858694,0.00035,10]
[343111285,1732364831904,26770.0191566,0.000235,2]
[343111286,1732364861911,1713.93609373,9e-05,2]
[343111287,1732364868737,23928.698912,0.00028,4]
[343111288,1732364869563,153.70909501,0.00052771,4]
[343111289,1732364871385,14176.67234884,0.00052771,4]
[343111290,1732364879433,11563.17004689,0.0001,2]
[343111291,1732364880784,7209.62886337,0.000217,2]
[343111292,1732364890297,168.2426728,0.00041642,30]
[343111293,1732364896740,9805.28392648,0.0001439,2]
[343111295,1732364909001,6057.0,0.00036911,2]
[343111296,1732364913349,417.2769763,0.00041641,31]
[343111297,1732364921956,5604.0881195,0.00018,2]
[343111298,1732364922439,40766.01557576,0.00035,10]
[343111299,1732364923105,8002.32696938,0.0001,2]
[343111300,1732364923497,255.39473138,0.000107,2]
[343111311,1732364959115,-157.17,0.00041096,2]
[343111312,1732364959136,-403.0093633,0.00041573,2]
[343111313,1732364959157,-550.0,0.00041641,5]
[343111314,1732364959178,-2348.4000827,0.00041642,2]
[343111332,1732365017623,155609.0,0.00044,30]
[343111338,1732365031892,-150.0,0.00041641,4]
[343111339,1732365031903,-833.24221,0.00041642,2]
[343111340,1732365031949,-897.03528111,0.00041642,2]
[343111341,1732365032007,-145188.81815071,0.00041642,2]
[343111342,1732365032063,-322.23814099,0.00041642,2]
[343111343,1732365032085,-75232.08833192,0.00041642,2]
[343111344,1732365032095,-27994.1116807,0.00043,2]
[343111345,1732365032104,-4944.0,0.00045,30]
[343111346,1732365032113,-725.91949222,0.00045,2]
[343111347,1732365032122,-150.0,0.00045,120]
[343111348,1732365032132,-271.28355391,0.00045,30]
[343111349,1732365032141,-1785.05228835,0.000451,2]
[343111350,1732365032150,-52914.81561455,0.000457,120]
[343111351,1732365032161,-369.82875829,0.00046,120]
[343111352,1732365032170,-39066.42409709,0.000469,2]
[343111353,1732365032179,-2230.79775078,0.00047,120]
[343111354,1732365032188,-500.0,0.00047573,10]
[343111355,1732365032199,-1728.65542228,0.000476,2]
[343111356,1732365032208,-999.99,0.000476,2]
[343111357,1732365032217,-160356.78784508,0.000476,30]
[343111358,1732365032226,-250.0,0.00047717,120]
[343111359,1732365032236,-200.0,0.00047735,2]
[343111360,1732365032245,-359.17937409,0.00047845,2]
[343111361,1732365032254,-687.59,0.00047945,2]
[343111362,1732365032264,-21.7891895,0.00047945,2]
[343111363,1732365032273,-557.49212291,0.00048121,10]
[343111364,1732365032282,-200.0,0.0004813,2]
[343111365,1732365032291,-23900.0,0.00048499,2]
[343111366,1732365032300,-696.73,0.00048506,2]
[343111367,1732365032308,-2741.37450134,0.000487,120]
[343111368,1732365032318,-151.53423074,0.0004888,120]
[343111369,1732365032327,-2128.90966095,0.00049,2]
[343111370,1732365032336,-21635.48020843,0.00049,2]
[343111371,1732365032345,-360.09791856,0.00049,60]
[343111373,1732365032354,-500.0,0.00049019,2]
[343111375,1732365032364,-25546.48772713,0.000498,30]
[343111377,1732365032374,-150.0,0.00049925,2]
[343111379,1732365032383,-11161.17760002,0.0005,7]
[343111380,1732365032392,-43602.99229281,0.0005,120]
[343111381,1732365032405,-5376.74697049,0.0005,2]
[343111382,1732365032415,-727.57687675,0.0005,120]
[343111384,1732365032428,-1129.90580331,0.0005,2]
[343111386,1732365032437,-3952.03594234,0.0005,2]
[343111388,1732365032448,-169.59247014,0.0005,120]
[343111390,1732365032457,-3147.56926153,0.0005,2]
[343111392,1732365032467,-320.97265413,0.0005,120]
[343111394,1732365032477,-18164.98985423,0.000509,120]
[343111397,1732365032493,-812.46721968,0.000509,120]
[343111398,1732365032513,-1731.82656883,0.000509,120]
[343111400,1732365032525,-319.21286726,0.000509,120]
[343111402,1732365032541,-1760.0,0.000509,120]
[343111419,1732365038042,-3181.64198359,0.000429,15]
[343111420,1732365038318,-162.17521119,0.000429,15]
[343111421,1732365038328,-500.0,0.00047572,2]
[343111422,1732365038338,-2299.72300995,0.000509,120]
[343111423,1732365038439,-6851.14354206,0.000509,120]
[343111424,1732365038450,-290.2815,0.00050925,120]
[343111425,1732365038460,-91165.57495796,0.00052,2]
[343111426,1732365038471,-1692.03704267,0.00052,2]
[343111429,1732365039921,-1939.1581964,0.00052,2]
[343111430,1732365040089,-319.49490212,0.00052,2]
[343111444,1732365043443,-20.07084831,0.00046789,15]
[343111447,1732365043458,-1770.0,0.00046789,15]
[343111450,1732365043478,-1553.74634645,0.00046789,15]
[343111452,1732365043488,-481.46843948,0.00051764,23]
[343111454,1732365043498,-2043.91811774,0.00052,2]
[343111474,1732365045952,-6182.6830715,0.00052,2]
[343112684,1732365134837,50000.0,0.00052759,2]
[343112685,1732365138667,50000.0,0.00052759,3]
[343112686,1732365142254,50000.0,0.00052759,4]
[343112687,1732365145554,50000.0,0.00052759,5]
[343112688,1732365294499,49202.65726324,0.00052759,15]
[343112689,1732365428552,20000.0,0.00052759,2]
[343112690,1732365541964,250.0,0.00031,2]
[343112691,1732365543688,300.0,0.00033,2]
[343112692,1732365545221,350.0,0.00035,2]
[343112693,1732365547190,400.0,0.00037,2]
[343112694,1732365554495,450.0,0.00039,2]
[343112695,1732365555697,500.0,0.00041,2]
[343112696,1732365583927,167.13,0.00043891,30]
[343112697,1732365717255,500.0,0.00052753,2]
[343112698,1732365737647,32132.4,0.00052718,2]
[343112699,1732365892842,635.0,0.00052718,2]
[343112700,1732365904393,150.0,0.00034548,10]
[343112701,1732366015146,-499.27856346,0.00041095,2]
[343112702,1732366109046,1080.46837352,0.00040995,2]
[343112703,1732366109814,500.0,0.00040995,2]
[343112709,1732366123440,5183.58603283,0.00040996,2]
[343112710,1732366123974,500.0,0.00040996,2]
[343112727,1732366220421,150.0,1e-06,2]
[343112728,1732366220446,150.0,1e-06,2]
[343112729,1732366220469,40.95672,1e-06,2]
[343112753,1732366235989,-500.72143654,0.00041095,2]
[343112754,1732366235999,-153.62,0.00041096,2]
[343112755,1732366236008,-155.63,0.00041096,2]
[343112756,1732366236017,-550.0,0.00043,2]
[343112757,1732366236026,-155.51896767,0.000449,120]
[343112758,1732366236035,-600.0,0.00045,2]
[343112759,1732366236044,-650.0,0.00047,2]
[343112760,1732366236053,-150.99,0.000489,30]
[343112761,1732366236063,-1217.74,0.000489,2]
[343112762,1732366236072,-700.0,0.00049,2]
[343112763,1732366236081,-155.63,0.00049087,2]
[343112764,1732366236091,-150.0,0.0004927,2]
[343112765,1732366236100,-1143.81,0.00049367,2]
[343112766,1732366236109,-153.62,0.00049813,2]
[343112767,1732366236118,-211.56,0.00050378,7]
[343112768,1732366236127,-447.2,0.00050378,7]
[343112769,1732366236136,-750.0,0.00051,2]
[343112770,1732366236145,-1385.0,0.00051,120]
[343112771,1732366236153,-237.75,0.0005136,2]
[343112772,1732366236162,-500.0,0.00051371,2]
[343112773,1732366236171,-6148.73,0.00051545,2]
[343112774,1732366236180,-1143.81,0.00051631,2]
[343112775,1732366236190,-1200.23,0.00051641,2]
[343112776,1732366236200,-243.98,0.0005168,2]
[343112777,1732366236209,-166.77,0.00051681,2]
[343112778,1732366236218,-250.0,0.00051698,120]
[343112779,1732366236226,-1394.57,0.00051717,2]
[343112781,1732366236236,-150.51,0.00051726,2]
[343112782,1732366236245,-25842.47759182,0.00052,2]
[343112785,1732366236256,-983.1896744,0.00052,2]
[343112788,1732366236282,-2499.35885688,0.00052,2]
[343112790,1732366236295,-2105.195939,0.00052,2]
[343112792,1732366236305,-1068.912965,0.00052,2]
[343112794,1732366236322,-106540.76595951,0.00052,2]
[343112796,1732366236331,-8502.0273444,0.00052,2]
[343112799,1732366236349,-511.57022837,0.00052,2]
[343112998,1732366238238,-4286.66963227,0.00052,2]
[343113001,1732366238253,-3984.86845846,0.00052,2]
[343113003,1732366238264,-93.6155475,0.00052007,2]